[Event "Early Titled Tuesday Blitz | February 8 2022"]
[White "Sokolovsky, Yahli"]
[Black "Todorovic, Bojan"]
[WhiteFideId "2820242"]
[BlackFideId "917087"]
[WhiteElo "1770"]
[BlackElo "2266"]
[Result "0-1"]
[Round "07"]
[TimeControl "180+1"]
[Date "2022.02.08"]
[WhiteClock "0:00:07"]
[BlackClock "0:00:29"]

1. b3 {[%clk 0:03:00]}  c5 {[%clk 0:02:57]} 2. Bb2 {[%clk 0:03:00]}  Nc6 {[%clk 0:02:56]} 3. e3 {[%clk 0:03:01]}  a6 {[%clk 0:02:55]} 4. Nf3 {[%clk 0:02:58]}  d5 {[%clk 0:02:53]} 5. d4 {[%clk 0:02:58]}  e6 {[%clk 0:02:52]} 6. a3 {[%clk 0:02:58]}  Nf6 {[%clk 0:02:51]} 7. Bd3 {[%clk 0:02:59]}  cxd4 {[%clk 0:02:47]} 8. exd4 {[%clk 0:02:58]}  Bd6 {[%clk 0:02:46]} 9. O-O {[%clk 0:02:58]}  O-O {[%clk 0:02:45]} 10. Ne5 {[%clk 0:02:52]}  Bd7 {[%clk 0:02:43]} 11. Nd2 {[%clk 0:02:47]}  b5 {[%clk 0:02:41]} 12. Ndf3 {[%clk 0:02:45]}  Be8 {[%clk 0:02:38]} 13. Nxc6 {[%clk 0:02:41]}  Bxc6 {[%clk 0:02:37]} 14. Ne5 {[%clk 0:02:42]}  Be8 {[%clk 0:02:37]} 15. Qe2 {[%clk 0:02:15]}  Nd7 {[%clk 0:02:23]} 16. f4 {[%clk 0:02:11]}  f5 {[%clk 0:02:18]} 17. Nf3 {[%clk 0:00:57]}  Bf7 {[%clk 0:02:08]} 18. Ng5 {[%clk 0:00:57]}  Re8 {[%clk 0:01:52]} 19. g4 {[%clk 0:00:36]}  Nf6 {[%clk 0:01:51]} 20. gxf5 {[%clk 0:00:24]}  exf5 {[%clk 0:01:50]} 21. Qg2 {[%clk 0:00:25]}  Ne4 {[%clk 0:01:38]} 22. Nf3 {[%clk 0:00:14]}  Bxf4 {[%clk 0:01:33]} 23. Ne5 {[%clk 0:00:15]}  Be3+ {[%clk 0:01:20]} 24. Kh1 {[%clk 0:00:15]}  f4 {[%clk 0:01:16]} 25. Rae1 {[%clk 0:00:06]}  Nd2 {[%clk 0:00:47]} 26. Bxh7+ {[%clk 0:00:05]}  Kxh7 {[%clk 0:00:43]} 27. Nxf7 {[%clk 0:00:06]}  Qh4 {[%clk 0:00:41]} 28. Ng5+ {[%clk 0:00:06]}  Kh8 {[%clk 0:00:40]} 29. Nf3 {[%clk 0:00:06]}  Nxf3 {[%clk 0:00:37]} 30. Rxf3 {[%clk 0:00:07]}  Kg8 {[%clk 0:00:32]} 31. Rh3 {[%clk 0:00:07]}  Qxe1+ {[%clk 0:00:29]} 0-1


[Site "https://www.chess.com"]

[Event "Early Titled Tuesday Blitz | February 8 2022"]
[White "Stankovic, Ivan G"]
[Black "Tregubov, Pavel V."]
[WhiteFideId "902837"]
[BlackFideId "4115341"]
[WhiteElo "2195"]
[BlackElo "2341"]
[Result "1/2-1/2"]
[Round "07"]
[TimeControl "180+1"]
[Date "2022.02.08"]
[WhiteClock "0:00:56"]
[BlackClock "0:00:59"]

1. e4 {[%clk 0:02:59]}  c5 {[%clk 0:02:58]} 2. c4 {[%clk 0:02:59]}  e6 {[%clk 0:02:57]} 3. Nc3 {[%clk 0:02:59]}  Nc6 {[%clk 0:02:56]} 4. g3 {[%clk 0:03:00]}  g6 {[%clk 0:02:52]} 5. Bg2 {[%clk 0:03:00]}  Bg7 {[%clk 0:02:53]} 6. Nge2 {[%clk 0:03:00]}  Nge7 {[%clk 0:02:54]} 7. d3 {[%clk 0:03:01]}  O-O {[%clk 0:02:54]} 8. Be3 {[%clk 0:03:01]}  Nd4 {[%clk 0:02:51]} 9. Rb1 {[%clk 0:03:01]}  d5 {[%clk 0:02:44]} 10. exd5 {[%clk 0:02:49]}  exd5 {[%clk 0:02:44]} 11. cxd5 {[%clk 0:02:49]}  Bg4 {[%clk 0:02:41]} 12. O-O {[%clk 0:02:45]}  Nxe2+ {[%clk 0:02:26]} 13. Nxe2 {[%clk 0:02:45]}  Nxd5 {[%clk 0:02:26]} 14. Bxc5 {[%clk 0:02:36]}  Re8 {[%clk 0:02:26]} 15. Qb3 {[%clk 0:02:33]}  Nb6 {[%clk 0:01:50]} 16. Nc3 {[%clk 0:02:13]}  Qxd3 {[%clk 0:01:46]} 17. Bxb6 {[%clk 0:02:03]}  axb6 {[%clk 0:01:47]} 18. Bxb7 {[%clk 0:02:04]}  Rab8 {[%clk 0:01:43]} 19. Bd5 {[%clk 0:02:04]}  Re7 {[%clk 0:01:40]} 20. Rfe1 {[%clk 0:01:55]}  Rd7 {[%clk 0:01:33]} 21. Qc4 {[%clk 0:01:21]}  Qxc4 {[%clk 0:01:19]} 22. Bxc4 {[%clk 0:01:21]}  Kf8 {[%clk 0:01:18]} 23. Be2 {[%clk 0:01:16]}  Be6 {[%clk 0:01:10]} 24. Rbd1 {[%clk 0:01:11]}  Rxd1 {[%clk 0:01:05]} 25. Rxd1 {[%clk 0:01:10]}  Bxc3 {[%clk 0:01:05]} 26. bxc3 {[%clk 0:01:10]}  Bxa2 {[%clk 0:01:05]} 27. c4 {[%clk 0:01:01]}  Rc8 {[%clk 0:01:04]} 28. Rd6 {[%clk 0:00:58]}  Bxc4 {[%clk 0:00:58]} 29. Bxc4 {[%clk 0:00:57]}  Rxc4 {[%clk 0:00:59]} 30. Rxb6 {[%clk 0:00:56]} 1/2-1/2


[Site "https://www.chess.com"]

[Event "Early Titled Tuesday Blitz | February 8 2022"]
[White "Szpar, Milosz"]
[Black "Navara, David"]
[WhiteFideId "1184989"]
[BlackFideId "309095"]
[WhiteElo "2447"]
[BlackElo "2686"]
[Result "0-1"]
[Round "07"]
[TimeControl "180+1"]
[Date "2022.02.08"]
[WhiteClock "0:00:41"]
[BlackClock "0:01:08"]

1. e4 {[%clk 0:03:00]}  c6 {[%clk 0:03:00]} 2. Nf3 {[%clk 0:02:57]}  d5 {[%clk 0:03:00]} 3. d3 {[%clk 0:02:58]}  dxe4 {[%clk 0:02:55]} 4. dxe4 {[%clk 0:02:58]}  Qxd1+ {[%clk 0:02:54]} 5. Kxd1 {[%clk 0:02:59]}  Nd7 {[%clk 0:02:55]} 6. Nfd2 {[%clk 0:02:51]}  Nc5 {[%clk 0:02:38]} 7. f3 {[%clk 0:02:51]}  e5 {[%clk 0:02:39]} 8. Nc4 {[%clk 0:02:51]}  f5 {[%clk 0:02:39]} 9. exf5 {[%clk 0:02:44]}  Bxf5 {[%clk 0:02:40]} 10. Be3 {[%clk 0:02:44]}  O-O-O+ {[%clk 0:02:40]} 11. Nbd2 {[%clk 0:02:42]}  e4 {[%clk 0:02:15]} 12. a4 {[%clk 0:02:33]}  Nf6 {[%clk 0:02:10]} 13. Kc1 {[%clk 0:01:36]}  exf3 {[%clk 0:02:06]} 14. gxf3 {[%clk 0:01:35]}  Nd5 {[%clk 0:02:02]} 15. Bf2 {[%clk 0:01:31]}  Nb4 {[%clk 0:01:58]} 16. Ne3 {[%clk 0:01:27]}  Bg6 {[%clk 0:01:33]} 17. Bh3+ {[%clk 0:01:23]}  Kb8 {[%clk 0:01:33]} 18. Bf5 {[%clk 0:01:23]}  Bxf5 {[%clk 0:01:26]} 19. Nxf5 {[%clk 0:01:23]}  g6 {[%clk 0:01:27]} 20. Ng3 {[%clk 0:01:16]}  Ncd3+ {[%clk 0:01:22]} 21. cxd3 {[%clk 0:01:12]}  Nxd3+ {[%clk 0:01:23]} 22. Kc2 {[%clk 0:01:13]}  Nxf2 {[%clk 0:01:24]} 23. Nc4 {[%clk 0:00:56]}  Nxh1 {[%clk 0:01:24]} 24. Rxh1 {[%clk 0:00:47]}  Bg7 {[%clk 0:01:24]} 25. Ne4 {[%clk 0:00:47]}  Rhf8 {[%clk 0:01:23]} 26. Ng5 {[%clk 0:00:47]}  Rde8 {[%clk 0:01:14]} 27. Rf1 {[%clk 0:00:42]}  h6 {[%clk 0:01:13]} 28. Nh3 {[%clk 0:00:41]}  Re2+ {[%clk 0:01:08]} 0-1


[Site "https://www.chess.com"]

[Event "Early Titled Tuesday Blitz | February 8 2022"]
[White "Tologon tegin, Semetei"]
[Black "Weetik, Vjacheslav"]
[WhiteFideId "13800574"]
[BlackFideId "4153472"]
[WhiteElo "2258"]
[BlackElo "2469"]
[Result "1-0"]
[Round "07"]
[TimeControl "180+1"]
[Date "2022.02.08"]
[WhiteClock "0:00:16"]
[BlackClock "0:00:04"]

1. e4 {[%clk 0:03:00]}  c6 {[%clk 0:02:57]} 2. d3 {[%clk 0:02:58]}  d5 {[%clk 0:02:57]} 3. Nc3 {[%clk 0:02:58]}  Nf6 {[%clk 0:02:38]} 4. e5 {[%clk 0:02:56]}  d4 {[%clk 0:02:36]} 5. Nce2 {[%clk 0:02:49]}  Ng4 {[%clk 0:02:28]} 6. f4 {[%clk 0:02:40]}  Qb6 {[%clk 0:02:16]} 7. Nf3 {[%clk 0:02:33]}  Ne3 {[%clk 0:02:08]} 8. Bxe3 {[%clk 0:02:27]}  dxe3 {[%clk 0:02:09]} 9. Qc1 {[%clk 0:02:26]}  Bg4 {[%clk 0:02:03]} 10. Nfd4 {[%clk 0:02:17]}  e6 {[%clk 0:01:54]} 11. c3 {[%clk 0:02:13]}  Na6 {[%clk 0:01:38]} 12. Ng3 {[%clk 0:02:10]}  g6 {[%clk 0:00:35]} 13. Ne4 {[%clk 0:02:03]}  Be7 {[%clk 0:00:30]} 14. b3 {[%clk 0:01:19]}  O-O-O {[%clk 0:00:29]} 15. Qxe3 {[%clk 0:01:16]}  Nb4 {[%clk 0:00:26]} 16. Qd2 {[%clk 0:01:00]}  Rxd4 {[%clk 0:00:24]} 17. cxd4 {[%clk 0:01:00]}  Qxd4 {[%clk 0:00:24]} 18. Rc1 {[%clk 0:00:57]}  Nd5 {[%clk 0:00:21]} 19. Be2 {[%clk 0:00:43]}  Bb4 {[%clk 0:00:20]} 20. Rc4 {[%clk 0:00:23]}  Qa1+ {[%clk 0:00:16]} 21. Kf2 {[%clk 0:00:20]}  Qxh1 {[%clk 0:00:13]} 22. Rxb4 {[%clk 0:00:20]}  Qxh2 {[%clk 0:00:10]} 23. Nd6+ {[%clk 0:00:18]}  Kd8 {[%clk 0:00:08]} 24. Nxf7+ {[%clk 0:00:16]}  Ke7 {[%clk 0:00:08]} 25. Rxb7+ {[%clk 0:00:16]}  Kf8 {[%clk 0:00:07]} 26. Nxh8 {[%clk 0:00:16]}  Nxf4 {[%clk 0:00:06]} 27. Bxg4 {[%clk 0:00:17]}  Qxg2+ {[%clk 0:00:06]} 28. Ke3 {[%clk 0:00:17]}  Qg1+ {[%clk 0:00:05]} 29. Ke4 {[%clk 0:00:17]}  Nd5 {[%clk 0:00:04]} 30. Qh6+ {[%clk 0:00:16]} 1-0


[Site "https://www.chess.com"]

[Event "Early Titled Tuesday Blitz | February 8 2022"]
[White "Warchol, Kamil"]
[Black "Vifleemskaia, Svetlana"]
[WhiteFideId "21858241"]
[BlackFideId "4129490"]
[WhiteElo "1905"]
[BlackElo "1901"]
[Result "0-1"]
[Round "07"]
[TimeControl "180+1"]
[Date "2022.02.08"]
[WhiteClock "0:00:02"]
[BlackClock "0:00:05"]

1. e4 {[%clk 0:03:00]}  e5 {[%clk 0:02:55]} 2. Nf3 {[%clk 0:02:59]}  Nc6 {[%clk 0:02:54]} 3. Bc4 {[%clk 0:02:56]}  Nf6 {[%clk 0:02:54]} 4. d3 {[%clk 0:02:54]}  Be7 {[%clk 0:02:52]} 5. c3 {[%clk 0:02:54]}  O-O {[%clk 0:02:51]} 6. Nbd2 {[%clk 0:02:54]}  d5 {[%clk 0:02:51]} 7. exd5 {[%clk 0:02:54]}  Nxd5 {[%clk 0:02:52]} 8. Ne4 {[%clk 0:02:54]}  Nb6 {[%clk 0:02:51]} 9. Bb3 {[%clk 0:02:53]}  h6 {[%clk 0:02:45]} 10. O-O {[%clk 0:02:52]}  Bg4 {[%clk 0:02:42]} 11. Qe2 {[%clk 0:02:48]}  a5 {[%clk 0:02:40]} 12. a4 {[%clk 0:02:46]}  Qd7 {[%clk 0:02:34]} 13. h3 {[%clk 0:02:36]}  Bh5 {[%clk 0:02:31]} 14. Ng3 {[%clk 0:02:34]}  Bg6 {[%clk 0:02:27]} 15. Rd1 {[%clk 0:02:27]}  Bf6 {[%clk 0:02:25]} 16. Ne4 {[%clk 0:02:24]}  Be7 {[%clk 0:02:23]} 17. Be3 {[%clk 0:02:23]}  Rad8 {[%clk 0:02:18]} 18. Rd2 {[%clk 0:02:15]}  Nd5 {[%clk 0:02:13]} 19. Rad1 {[%clk 0:02:04]}  b6 {[%clk 0:01:51]} 20. d4 {[%clk 0:01:29]}  Bxe4 {[%clk 0:01:49]} 21. dxe5 {[%clk 0:01:28]}  Qe6 {[%clk 0:01:20]} 22. Nd4 {[%clk 0:00:52]}  Nxd4 {[%clk 0:01:07]} 23. Rxd4 {[%clk 0:00:49]}  Qxe5 {[%clk 0:01:03]} 24. Bxh6 {[%clk 0:00:41]}  Nf6 {[%clk 0:00:40]} 25. Be3 {[%clk 0:00:17]}  Bg6 {[%clk 0:00:32]} 26. Qf3 {[%clk 0:00:14]}  Bd6 {[%clk 0:00:19]} 27. Bf4 {[%clk 0:00:08]}  Qf5 {[%clk 0:00:18]} 28. Bxd6 {[%clk 0:00:02]}  Qxf3 {[%clk 0:00:18]} 29. gxf3 {[%clk 0:00:02]}  cxd6 {[%clk 0:00:16]} 30. Rxd6 {[%clk 0:00:03]}  Rxd6 {[%clk 0:00:16]} 31. Rxd6 {[%clk 0:00:04]}  Rb8 {[%clk 0:00:16]} 32. Kg2 {[%clk 0:00:02]}  b5 {[%clk 0:00:15]} 33. Ra6 {[%clk 0:00:01]}  bxa4 {[%clk 0:00:15]} 34. Bxa4 {[%clk 0:00:01]}  Rxb2 {[%clk 0:00:14]} 35. Rxa5 {[%clk 0:00:02]}  Ra2 {[%clk 0:00:13]} 36. c4 {[%clk 0:00:02]}  Kh7 {[%clk 0:00:09]} 37. Ra8 {[%clk 0:00:01]}  Bc2 {[%clk 0:00:06]} 38. Bxc2+ {[%clk 0:00:01]}  Rxc2 {[%clk 0:00:06]} 39. Rc8 {[%clk 0:00:02]}  Kg6 {[%clk 0:00:06]} 40. c5 {[%clk 0:00:03]}  Nd5 {[%clk 0:00:05]} 41. c6 {[%clk 0:00:04]}  Kf6 {[%clk 0:00:06]} 42. Kg3 {[%clk 0:00:03]}  Ke6 {[%clk 0:00:06]} 43. Kg4 {[%clk 0:00:04]}  f5+ {[%clk 0:00:06]} 44. Kg5 {[%clk 0:00:03]}  Rxf2 {[%clk 0:00:05]} 45. Kg6 {[%clk 0:00:03]}  Rg2+ {[%clk 0:00:06]} 46. Kh7 {[%clk 0:00:03]}  Kd6 {[%clk 0:00:06]} 47. Rd8+ {[%clk 0:00:02]}  Kxc6 {[%clk 0:00:06]} 48. Rg8 {[%clk 0:00:02]}  Kd6 {[%clk 0:00:06]} 49. Rxg7 {[%clk 0:00:02]}  Rxg7+ {[%clk 0:00:06]} 50. Kxg7 {[%clk 0:00:03]}  Ke6 {[%clk 0:00:06]} 51. h4 {[%clk 0:00:03]}  Nf4 {[%clk 0:00:07]} 52. Kh6 {[%clk 0:00:02]}  Ke5 {[%clk 0:00:07]} 53. Kg5 {[%clk 0:00:02]}  Nh3+ {[%clk 0:00:07]} 54. Kg6 {[%clk 0:00:02]}  Kf4 {[%clk 0:00:06]} 55. h5 {[%clk 0:00:03]}  Kxf3 {[%clk 0:00:04]} 56. h6 {[%clk 0:00:03]}  Nf4+ {[%clk 0:00:05]} 57. Kg7 {[%clk 0:00:02]}  Ne6+ {[%clk 0:00:05]} 58. Kg6 {[%clk 0:00:03]}  Nf4+ {[%clk 0:00:05]} 59. Kg7 {[%clk 0:00:03]}  Ne6+ {[%clk 0:00:05]} 60. Kf7 {[%clk 0:00:03]}  Ng5+ {[%clk 0:00:05]} 61. Kg6 {[%clk 0:00:03]}  Kg4 {[%clk 0:00:05]} 62. Kf6 {[%clk 0:00:02]}  f4 {[%clk 0:00:05]} 63. Kg6 {[%clk 0:00:01]}  f3 {[%clk 0:00:06]} 64. h7 {[%clk 0:00:02]}  Nxh7 {[%clk 0:00:05]} 0-1


[Site "https://www.chess.com"]

[Event "Early Titled Tuesday Blitz | February 8 2022"]
[White "Weishaeutel, Moritz"]
[Black "Wahedi, Ahmad Siar"]
[WhiteFideId "12967300"]
[BlackFideId "4651260"]
[WhiteElo "2002"]
[BlackElo "2386"]
[Result "1-0"]
[Round "07"]
[TimeControl "180+1"]
[Date "2022.02.08"]
[WhiteClock "0:00:53"]
[BlackClock "0:02:32"]

1. e4 {[%clk 0:03:00]}  Nf6 {[%clk 0:03:00]} 2. Nc3 {[%clk 0:03:00]}  e6 {[%clk 0:03:00]} 3. e5 {[%clk 0:02:59]}  Nd5 {[%clk 0:03:00]} 4. Nxd5 {[%clk 0:02:59]}  exd5 {[%clk 0:03:00]} 5. d4 {[%clk 0:02:59]}  d6 {[%clk 0:03:00]} 6. Nf3 {[%clk 0:02:58]}  c5 {[%clk 0:03:00]} 7. exd6 {[%clk 0:02:53]}  Bxd6 {[%clk 0:02:59]} 8. Bb5+ {[%clk 0:02:51]}  Nc6 {[%clk 0:02:59]} 9. O-O {[%clk 0:02:49]}  O-O {[%clk 0:02:59]} 10. dxc5 {[%clk 0:02:47]}  Bxc5 {[%clk 0:02:58]} 11. Bd3 {[%clk 0:02:35]}  Bg4 {[%clk 0:02:53]} 12. Be2 {[%clk 0:01:13]}  Bb6 {[%clk 0:02:47]} 13. Ng5 {[%clk 0:01:05]}  Bxe2 {[%clk 0:02:41]} 14. Qxe2 {[%clk 0:01:06]}  Qf6 {[%clk 0:02:37]} 15. Qd3 {[%clk 0:00:54]}  Rad8 {[%clk 0:02:32]} 16. Qxh7# {[%clk 0:00:53]} 1-0


[Site "https://www.chess.com"]

[Event "Early Titled Tuesday Blitz | February 8 2022"]
[White "Xie, Bryan"]
[Black "Lopez Mulet, Inigo"]
[WhiteFideId "30941296"]
[BlackFideId "22235620"]
[WhiteElo "1899"]
[BlackElo "2315"]
[Result "0-1"]
[Round "07"]
[TimeControl "180+1"]
[Date "2022.02.08"]
[WhiteClock "0:00:02"]
[BlackClock "0:01:20"]

1. d4 {[%clk 0:02:57]}  d6 {[%clk 0:02:57]} 2. Nf3 {[%clk 0:02:50]}  Nf6 {[%clk 0:02:55]} 3. Bf4 {[%clk 0:02:49]}  g6 {[%clk 0:02:51]} 4. h3 {[%clk 0:02:47]}  Bg7 {[%clk 0:02:51]} 5. e3 {[%clk 0:02:48]}  O-O {[%clk 0:02:52]} 6. Nbd2 {[%clk 0:02:48]}  b6 {[%clk 0:02:53]} 7. Be2 {[%clk 0:02:48]}  Bb7 {[%clk 0:02:53]} 8. O-O {[%clk 0:02:49]}  Nbd7 {[%clk 0:02:54]} 9. c4 {[%clk 0:02:45]}  Re8 {[%clk 0:02:54]} 10. Bh2 {[%clk 0:02:45]}  e5 {[%clk 0:02:54]} 11. d5 {[%clk 0:02:45]}  a6 {[%clk 0:02:47]} 12. e4 {[%clk 0:02:41]}  Nc5 {[%clk 0:02:47]} 13. Qc2 {[%clk 0:02:40]}  a5 {[%clk 0:02:47]} 14. Rfe1 {[%clk 0:02:28]}  Nh5 {[%clk 0:02:47]} 15. Nb3 {[%clk 0:02:26]}  Nd7 {[%clk 0:02:41]} 16. Nfd2 {[%clk 0:02:09]}  Qg5 {[%clk 0:02:35]} 17. Nf3 {[%clk 0:01:55]}  Qf6 {[%clk 0:02:34]} 18. Qd2 {[%clk 0:01:46]}  a4 {[%clk 0:02:31]} 19. Nc1 {[%clk 0:01:46]}  Nc5 {[%clk 0:02:32]} 20. Bd1 {[%clk 0:01:42]}  Nf4 {[%clk 0:02:30]} 21. Rb1 {[%clk 0:01:18]}  Bc8 {[%clk 0:02:21]} 22. b4 {[%clk 0:01:12]}  axb3 {[%clk 0:02:21]} 23. axb3 {[%clk 0:01:11]}  Ra3 {[%clk 0:02:18]} 24. b4 {[%clk 0:01:07]}  Na6 {[%clk 0:02:05]} 25. Re3 {[%clk 0:01:02]}  Rxe3 {[%clk 0:02:03]} 26. fxe3 {[%clk 0:00:55]}  Nxh3+ {[%clk 0:01:47]} 27. gxh3 {[%clk 0:00:56]}  Bxh3 {[%clk 0:01:48]} 28. Qf2 {[%clk 0:00:51]}  Bh6 {[%clk 0:01:41]} 29. Rb3 {[%clk 0:00:36]}  Bd7 {[%clk 0:01:40]} 30. Qh4 {[%clk 0:00:30]}  Qxh4 {[%clk 0:01:36]} 31. Nxh4 {[%clk 0:00:31]}  Ba4 {[%clk 0:01:36]} 32. Rd3 {[%clk 0:00:23]}  Bxd1 {[%clk 0:01:33]} 33. Rxd1 {[%clk 0:00:24]}  Bxe3+ {[%clk 0:01:31]} 34. Kf1 {[%clk 0:00:24]}  Nxb4 {[%clk 0:01:31]} 35. Ng2 {[%clk 0:00:20]}  Bg5 {[%clk 0:01:29]} 36. Nd3 {[%clk 0:00:20]}  Nc2 {[%clk 0:01:27]} 37. Bg1 {[%clk 0:00:10]}  f5 {[%clk 0:01:26]} 38. exf5 {[%clk 0:00:08]}  gxf5 {[%clk 0:01:27]} 39. Ke2 {[%clk 0:00:08]}  Ra8 {[%clk 0:01:23]} 40. Rb1 {[%clk 0:00:07]}  Na3 {[%clk 0:01:21]} 41. Ra1 {[%clk 0:00:06]}  Ra5 {[%clk 0:01:21]} 42. Nb2 {[%clk 0:00:03]}  Nxc4 {[%clk 0:01:20]} 43. Rxa5 {[%clk 0:00:03]}  Nxa5 {[%clk 0:01:20]} 44. Kd3 {[%clk 0:00:02]}  Kf7 {[%clk 0:01:20]} 0-1


[Site "https://www.chess.com"]

[Event "Early Titled Tuesday Blitz | February 8 2022"]
[White "Yoo, Christopher Woojin"]
[Black "Martinovici, Ilia"]
[WhiteFideId "30909694"]
[BlackFideId "13907034"]
[WhiteElo "2105"]
[BlackElo "2303"]
[Result "1-0"]
[Round "07"]
[TimeControl "180+1"]
[Date "2022.02.08"]
[WhiteClock "0:00:02"]
[BlackClock "0:00:02"]

1. e4 {[%clk 0:03:00]}  c5 {[%clk 0:02:59]} 2. Nf3 {[%clk 0:02:59]}  e6 {[%clk 0:02:59]} 3. c3 {[%clk 0:02:59]}  Nf6 {[%clk 0:02:58]} 4. e5 {[%clk 0:02:58]}  Nd5 {[%clk 0:02:59]} 5. d4 {[%clk 0:02:58]}  d6 {[%clk 0:02:58]} 6. Bc4 {[%clk 0:02:44]}  cxd4 {[%clk 0:02:57]} 7. cxd4 {[%clk 0:02:44]}  Nc6 {[%clk 0:02:57]} 8. O-O {[%clk 0:02:45]}  Nb6 {[%clk 0:02:53]} 9. Bd3 {[%clk 0:02:44]}  Nb4 {[%clk 0:02:42]} 10. Be2 {[%clk 0:02:37]}  dxe5 {[%clk 0:02:41]} 11. Nxe5 {[%clk 0:02:37]}  Be7 {[%clk 0:02:38]} 12. Nc3 {[%clk 0:02:36]}  O-O {[%clk 0:02:35]} 13. Bf3 {[%clk 0:02:32]}  N4d5 {[%clk 0:02:28]} 14. Qb3 {[%clk 0:02:30]}  a5 {[%clk 0:02:11]} 15. a4 {[%clk 0:02:30]}  Nb4 {[%clk 0:02:06]} 16. Rd1 {[%clk 0:02:29]}  N6d5 {[%clk 0:02:05]} 17. Be3 {[%clk 0:02:19]}  b6 {[%clk 0:02:04]} 18. Nxd5 {[%clk 0:02:00]}  exd5 {[%clk 0:02:05]} 19. Rac1 {[%clk 0:01:59]}  Bf5 {[%clk 0:01:53]} 20. Nc6 {[%clk 0:01:54]}  Qd7 {[%clk 0:01:44]} 21. Bxd5 {[%clk 0:01:45]}  Nxd5 {[%clk 0:00:58]} 22. Qxd5 {[%clk 0:01:43]}  Bd6 {[%clk 0:00:58]} 23. Ne5 {[%clk 0:01:20]}  Bxe5 {[%clk 0:00:52]} 24. dxe5 {[%clk 0:01:20]}  Qxa4 {[%clk 0:00:50]} 25. Bxb6 {[%clk 0:01:14]}  Rab8 {[%clk 0:00:47]} 26. Bc5 {[%clk 0:01:10]}  Rfe8 {[%clk 0:00:40]} 27. Ba3 {[%clk 0:00:29]}  Rb5 {[%clk 0:00:39]} 28. Qc6 {[%clk 0:00:25]}  Reb8 {[%clk 0:00:18]} 29. Qc7 {[%clk 0:00:23]}  h6 {[%clk 0:00:12]} 30. Qe7 {[%clk 0:00:04]}  Be6 {[%clk 0:00:09]} 31. Rd8+ {[%clk 0:00:02]}  Rxd8 {[%clk 0:00:08]} 32. Qxd8+ {[%clk 0:00:03]}  Kh7 {[%clk 0:00:09]} 33. Qd3+ {[%clk 0:00:03]}  g6 {[%clk 0:00:06]} 34. Qe3 {[%clk 0:00:04]}  Qb3 {[%clk 0:00:03]} 35. Qf4 {[%clk 0:00:02]}  Qd5 {[%clk 0:00:02]} 36. Re1 {[%clk 0:00:02]} 1-0


[Site "https://www.chess.com"]

[Event "Early Titled Tuesday Blitz | February 8 2022"]
[White "Yuan, Qingyu"]
[Black "Ponkratov, Pavel"]
[WhiteFideId "8609772"]
[BlackFideId "4157800"]
[WhiteElo "2359"]
[BlackElo "2487"]
[Result "0-1"]
[Round "07"]
[TimeControl "180+1"]
[Date "2022.02.08"]
[WhiteClock "0:00:24"]
[BlackClock "0:02:35"]

1. Nf3 {[%clk 0:03:00]}  d5 {[%clk 0:03:00]} 2. g3 {[%clk 0:03:00]}  Nf6 {[%clk 0:03:00]} 3. Bg2 {[%clk 0:03:00]}  g6 {[%clk 0:03:00]} 4. b3 {[%clk 0:03:00]}  Bg7 {[%clk 0:03:01]} 5. Bb2 {[%clk 0:03:01]}  O-O {[%clk 0:03:01]} 6. c4 {[%clk 0:02:59]}  e6 {[%clk 0:02:58]} 7. O-O {[%clk 0:02:59]}  c5 {[%clk 0:02:58]} 8. cxd5 {[%clk 0:02:54]}  exd5 {[%clk 0:02:56]} 9. d4 {[%clk 0:02:48]}  Ne4 {[%clk 0:02:56]} 10. Nbd2 {[%clk 0:02:45]}  Nc6 {[%clk 0:02:55]} 11. Rc1 {[%clk 0:02:39]}  cxd4 {[%clk 0:02:52]} 12. a3 {[%clk 0:02:13]}  Nc3 {[%clk 0:02:50]} 13. Bxc3 {[%clk 0:01:47]}  dxc3 {[%clk 0:02:50]} 14. Nb1 {[%clk 0:01:47]}  d4 {[%clk 0:02:51]} 15. e3 {[%clk 0:01:41]}  Bf5 {[%clk 0:02:50]} 16. Qe1 {[%clk 0:01:24]}  c2 {[%clk 0:02:49]} 17. Nbd2 {[%clk 0:01:22]}  d3 {[%clk 0:02:49]} 18. e4 {[%clk 0:01:15]}  Be6 {[%clk 0:02:48]} 19. Qe3 {[%clk 0:01:11]}  Qd6 {[%clk 0:02:48]} 20. b4 {[%clk 0:00:58]}  Rfd8 {[%clk 0:02:46]} 21. Ne1 {[%clk 0:00:52]}  Bb2 {[%clk 0:02:44]} 22. Nxd3 {[%clk 0:00:43]}  Qxd3 {[%clk 0:02:44]} 23. Qxd3 {[%clk 0:00:43]}  Rxd3 {[%clk 0:02:44]} 24. Rxc2 {[%clk 0:00:44]}  Bxa3 {[%clk 0:02:45]} 25. Nf3 {[%clk 0:00:41]}  Nxb4 {[%clk 0:02:44]} 26. Rc7 {[%clk 0:00:41]}  Rd7 {[%clk 0:02:38]} 27. Rxd7 {[%clk 0:00:36]}  Bxd7 {[%clk 0:02:38]} 28. Ne5 {[%clk 0:00:36]}  Be6 {[%clk 0:02:36]} 29. f4 {[%clk 0:00:32]}  Nc6 {[%clk 0:02:35]} 30. Nxc6 {[%clk 0:00:27]}  bxc6 {[%clk 0:02:35]} 31. f5 {[%clk 0:00:28]}  gxf5 {[%clk 0:02:35]} 32. exf5 {[%clk 0:00:28]}  Bd5 {[%clk 0:02:35]} 33. Ra1 {[%clk 0:00:27]}  Bb2 {[%clk 0:02:34]} 34. Rb1 {[%clk 0:00:27]}  Bd4+ {[%clk 0:02:34]} 35. Kh1 {[%clk 0:00:27]}  Bxg2+ {[%clk 0:02:34]} 36. Kxg2 {[%clk 0:00:27]}  a5 {[%clk 0:02:34]} 37. Rd1 {[%clk 0:00:27]}  c5 {[%clk 0:02:34]} 38. Rb1 {[%clk 0:00:24]}  a4 {[%clk 0:02:35]} 39. Rb7 {[%clk 0:00:24]}  a3 {[%clk 0:02:35]} 40. Ra7 {[%clk 0:00:24]}  Rxa7 {[%clk 0:02:35]} 0-1


[Site "https://www.chess.com"]